bitfinex-derivatives/quotes_BTCF0:USTF0_20251125
["timestamp","ask_amount","ask_price","bid_price","bid_amount"]
[1764063285893,0.18272579,86979.0,86957.0,0.0115027]
[1764063286100,0.51090412,86979.0,86957.0,0.0739727]
[1764063286300,0.11500002,86974.0,86957.0,0.0739727]
[1764063286505,0.52,86974.0,86957.0,0.0739727]
[1764063286694,0.11500002,86973.0,86958.0,0.0739725]
[1764063286898,0.59500002,86973.0,86958.0,0.06247]
[1764063287090,0.59500002,86973.0,86968.0,0.15828]
[1764063287889,0.59500002,86973.0,86968.0,0.03242]
[1764063288094,0.59500002,86973.0,86961.0,0.09489]
[1764063288298,0.09179741,86971.0,86968.0,0.003]
[1764063288498,0.49,86971.0,86968.0,0.003]
[1764063288802,0.49,86971.0,86968.0,0.03542]
[1764063288994,0.11498151,86970.0,86968.0,0.03542]
[1764063289197,0.63498151,86970.0,86968.0,0.03542]
[1764063289502,0.63498151,86970.0,86968.0,0.03842]
[1764063290096,0.63498151,86970.0,86968.0,0.006]
[1764063290296,0.63498151,86970.0,86968.0,0.003]
[1764063291601,0.63498151,86970.0,86968.0,0.006]
[1764063294707,1.03498151,86970.0,86948.0,0.00017251]
[1764063294902,0.08168226,86951.0,86948.0,0.00017251]
[1764063295109,0.08168226,86949.0,86948.0,0.00017251]
[1764063295297,0.57168226,86949.0,86948.0,0.00017251]
[1764063295493,0.60499672,86949.0,86948.0,0.00017251]
[1764063295700,0.60499672,86949.0,86934.0,0.03242]
[1764063295897,0.08169558,86940.0,86934.0,0.03242]
[1764063296101,0.08169558,86939.0,86934.0,0.03242]
[1764063296303,0.61169558,86939.0,86934.0,0.15828]
[1764063296505,0.11501986,86938.0,86934.0,0.15828]
[1764063296706,0.58501986,86938.0,86934.0,0.09489]
[1764063296908,0.58501986,86938.0,86934.0,0.09789]
[1764063296909,0.08169558,86937.0,86934.0,0.09789]
[1764063297107,0.60169558,86937.0,86934.0,0.09789]
[1764063297595,0.11502714,86936.0,86934.0,0.09789]
[1764063297799,0.63502714,86936.0,86934.0,0.09789]
[1764063297999,0.02325545,86935.0,86934.0,0.09789]
[1764063298204,0.56325545,86935.0,86934.0,0.03542]
[1764063298904,0.56325545,86935.0,86934.0,0.03242]
[1764063299210,0.56325545,86935.0,86934.0,0.09495]
[1764063299511,0.56325545,86935.0,86928.0,0.03242]
[1764063299705,0.02325545,86934.0,86928.0,0.09495]
[1764063299913,0.51325545,86934.0,86933.0,0.0347]
[1764063300097,0.51325545,86934.0,86933.0,0.16035]
[1764063300910,0.62828921,86934.0,86927.0,0.00017251]
[1764063301115,0.08169558,86928.0,86927.0,0.00017251]
[1764063301415,0.53325545,86928.0,86919.0,0.03242]
[1764063301614,0.53325545,86928.0,86905.0,0.0347]
[1764063301615,0.08174512,86923.0,86905.0,0.0347]
[1764063301810,0.08174512,86917.0,86905.0,0.0347]
[1764063302016,0.20493545,86916.0,86905.0,0.09723]
[1764063302315,0.1212034,86915.0,86905.0,0.09723]
[1764063302509,0.08174512,86913.0,86905.0,0.09723]
[1764063302710,0.10500057,86912.0,86905.0,0.09723]
[1764063302908,0.08174512,86908.0,86901.0,0.00017251]
[1764063303110,0.08174512,86904.0,86901.0,0.00017251]
[1764063303314,0.02325545,86903.0,86901.0,0.00017251]
[1764063303507,0.02325545,86902.0,86901.0,0.00017251]
[1764063303707,0.53325545,86902.0,86901.0,0.00017251]
[1764063304109,0.64831899,86902.0,86901.0,0.00017251]
[1764063304519,0.82999899,86902.0,86901.0,0.12582251]
[1764063304720,0.83099899,86902.0,86901.0,0.12582251]
[1764063305424,0.74099899,86902.0,86901.0,0.12582251]
[1764063305617,0.74199899,86902.0,86901.0,0.12582251]
[1764063307122,0.71874354,86902.0,86901.0,0.12582251]
[1764063309124,0.71878354,86902.0,86901.0,0.00017251]
[1764063309716,0.80878354,86902.0,86901.0,0.00017251]
[1764063309914,0.83215982,86902.0,86901.0,0.00017251]
[1764063310121,0.83215982,86902.0,86884.0,0.09723]
[1764063310318,0.09188669,86894.0,86884.0,0.0347]
[1764063310518,0.62188669,86894.0,86884.0,0.0347]
[1764063310714,0.02336784,86893.0,86884.0,0.0347]
[1764063310915,0.02336784,86892.0,86884.0,0.0347]
[1764063311116,0.02336784,86891.0,86884.0,0.0347]
[1764063311321,0.53,86891.0,86884.0,0.0347]
[1764063311522,0.11509002,86890.0,86884.0,0.0347]
[1764063311723,0.58509002,86890.0,86884.0,0.0347]
[1764063312024,0.47,86890.0,86884.0,0.0347]
[1764063312526,0.11509201,86889.0,86884.0,0.15981]
[1764063312723,0.59509201,86889.0,86888.0,0.12118]
[1764063313018,0.00017261,86897.0,86884.0,0.0347]
[1764063313019,0.00017261,86897.0,86896.0,0.15936]
[1764063313222,0.43017261,86897.0,86896.0,0.15936]
[1764063313624,0.54526263,86897.0,86896.0,0.15936]
[1764063314928,0.49526263,86897.0,86896.0,0.15936]
[1764063315222,0.49626263,86897.0,86896.0,0.15936]
[1764063315417,0.49626263,86897.0,86896.0,0.15736]
[1764063320138,0.49626263,86897.0,86896.0,0.03818]
[1764063321027,0.49626263,86897.0,86884.0,0.15588]
[1764063321327,0.0233852,86896.0,86895.0,0.12118]
[1764063321536,0.4133852,86896.0,86895.0,0.12118]
[1764063322031,0.39,86896.0,86895.0,0.12118]
[1764063322220,0.39,86896.0,86895.0,0.132691]
[1764063322533,0.391,86896.0,86895.0,0.12118]
[1764063324134,0.41444583,86896.0,86895.0,0.12118]
[1764063326831,0.02444583,86896.0,86895.0,0.12118]
[1764063327731,0.02344583,86896.0,86895.0,0.12118]
[1764063327936,0.02444583,86896.0,86895.0,0.12118]
[1764063328330,0.02344583,86896.0,86895.0,0.12118]
[1764063329224,0.08161965,86918.0,86907.0,0.12118]
[1764063329426,0.04,86908.0,86907.0,0.12118]
[1764063330035,0.05715624,86908.0,86907.0,0.12118]
[1764063330440,0.29715624,86908.0,86907.0,0.12118]
[1764063331732,0.29815624,86908.0,86907.0,0.12118]
[1764063332129,0.29715624,86908.0,86907.0,0.12118]
[1764063332336,0.29915624,86908.0,86907.0,0.12118]
[1764063333939,0.4142211,86908.0,86899.0,0.05877261]
[1764063334140,0.08161965,86901.0,86899.0,0.00017261]
[1764063334431,0.44,86901.0,86899.0,0.00017261]
[1764063334633,0.53,86901.0,86899.0,0.00017261]
[1764063334830,0.11506486,86900.0,86899.0,0.00017261]
[1764063335026,0.52506486,86900.0,86899.0,0.00017261]
[1764063335440,0.41,86900.0,86891.0,0.15936]
[1764063335632,0.0818501,86893.0,86891.0,0.15936]
[1764063335834,0.0818501,86892.0,86891.0,0.15936]
[1764063336133,0.4718501,86892.0,86891.0,0.15936]
[1764063336334,0.39,86892.0,86891.0,0.15936]
[1764063336645,0.47184812,86892.0,86891.0,0.15936]
[1764063337933,0.47284812,86892.0,86891.0,0.15936]
[1764063339642,0.091,86892.0,86891.0,0.15936]
[1764063340334,0.381,86892.0,86891.0,0.15936]
[1764063340729,0.01715624,86908.0,86897.0,0.12118]
[1764063340730,0.08184812,86898.0,86897.0,0.12118]
[1764063341042,0.08184812,86900.0,86899.0,0.12889]
[1764063341242,0.08184812,86905.0,86904.0,0.12889]
[1764063341539,0.08184812,86910.0,86909.0,0.12889]
[1764063341742,0.15184812,86910.0,86909.0,0.12889]
[1764063341944,0.17522595,86910.0,86909.0,0.12889]
[1764063342138,0.42522595,86910.0,86909.0,0.12889]
[1764063342445,0.36016447,86910.0,86909.0,0.12889]
[1764063342743,0.20205741,86910.0,86909.0,0.12889]
[1764063342948,0.02337783,86910.0,86909.0,0.12889]
[1764063343132,0.08189294,86919.0,86915.0,0.12889]
[1764063343444,0.08189294,86924.0,86915.0,0.12889]
[1764063343638,0.08189294,86923.0,86915.0,0.12889]
[1764063343839,0.08189294,86924.0,86915.0,0.12889]
[1764063344153,0.01713429,86916.0,86915.0,0.12889]
[1764063345039,0.00017261,86916.0,86915.0,0.12889]
[1764063354644,0.01793532,86920.0,86919.0,0.06593]
[1764063354849,0.10332,86941.0,86919.0,0.16272]
[1764063355051,0.13829272,86940.0,86919.0,0.16272]
[1764063355251,0.02323845,86939.0,86923.0,0.0115073]
[1764063355551,0.02323845,86938.0,86937.0,0.12889]
[1764063355854,0.53323845,86938.0,86937.0,0.12889]
[1764063356242,0.64827353,86938.0,86937.0,0.12889]
[1764063356551,0.44323845,86938.0,86937.0,0.12689]
[1764063356936,0.42,86938.0,86937.0,0.12689]
[1764063357142,0.44423688,86938.0,86937.0,0.12689]
[1764063357744,0.44523688,86938.0,86937.0,0.12689]
[1764063358152,0.53523688,86938.0,86937.0,0.12689]
[1764063359654,0.53522143,86938.0,86937.0,0.12689]
[1764063360649,0.53522143,86938.0,86929.0,0.05776261]
[1764063360953,0.02322143,86937.0,86929.0,0.05776261]
[1764063361154,0.02322143,86936.0,86929.0,0.05776261]
[1764063361348,0.02322143,86935.0,86929.0,0.05776261]
[1764063361650,0.02322143,86934.0,86933.0,0.03404]
[1764063361841,0.51322143,86934.0,86933.0,0.14656]
[1764063363055,0.51322143,86934.0,86933.0,0.09163]
[1764063363354,0.51322143,86934.0,86933.0,0.14656]
[1764063363555,0.51322143,86934.0,86933.0,0.03404]
[1764063363748,0.51422143,86934.0,86933.0,0.03404]
[1764063364348,0.51422143,86934.0,86933.0,0.09163]
[1764063364749,0.51522143,86934.0,86933.0,0.14656]
[1764063365553,0.51422143,86934.0,86933.0,0.14656]
[1764063365757,0.51522143,86934.0,86933.0,0.14656]
[1764063368356,0.51422143,86934.0,86933.0,0.14656]
[1764063368653,0.42522143,86934.0,86933.0,0.14656]
[1764063368958,0.46522143,86934.0,86933.0,0.14656]
[1764063369963,0.16522143,86934.0,86933.0,0.14656]
[1764063370859,0.02522143,86934.0,86933.0,0.14656]
[1764063371057,0.00017261,86946.0,86945.0,0.1221043]
[1764063371259,0.13442,86960.0,86959.0,0.1106]
[1764063371465,0.51628,86960.0,86959.0,0.1106]
[1764063371955,0.64961871,86960.0,86959.0,0.1106]
[1764063373563,0.65061871,86960.0,86959.0,0.1106]
[1764063373963,0.65061871,86960.0,86959.0,0.1156]
[1764063374462,0.65061871,86960.0,86959.0,0.1106]
[1764063374662,0.74161871,86960.0,86959.0,0.1106]
[1764063375068,0.74161871,86960.0,86959.0,0.08440357]
[1764063375365,0.41402826,86960.0,86959.0,0.08440357]
[1764063375964,0.40216826,86960.0,86959.0,0.08440357]
[1764063376369,0.39030826,86960.0,86959.0,0.08440357]
[1764063377667,0.372,86960.0,86959.0,0.08440357]
[1764063377965,0.032,86960.0,86959.0,0.08440357]
[1764063378569,0.002,86960.0,86959.0,0.08440357]
[1764063378755,0.00017196,86968.0,86967.0,0.1221014]
[1764063379162,0.08197567,86993.0,86992.0,0.1106]
[1764063379366,0.08046,86996.0,86995.0,0.1106]
[1764063379663,0.45046,86996.0,86995.0,0.1106]
[1764063379865,0.45046,86996.0,86989.0,0.03295]
[1764063379866,0.08197567,87021.0,86996.0,0.03295]
[1764063380066,0.52,87021.0,87000.0,0.0001724]
[1764063380260,0.19544548,87016.0,87015.0,0.1106]
[1764063380462,0.08046,87016.0,87015.0,0.1106]
[1764063380759,0.58539129,87016.0,87015.0,0.1106]
[1764063380966,0.58539129,87016.0,87015.0,0.05608]
[1764063381467,0.58539129,87016.0,87015.0,0.1156]
[1764063382064,0.54516129,87016.0,87015.0,0.1156]
[1764063382265,0.39,87016.0,87015.0,0.1156]
[1764063382567,0.08976,87043.0,87021.0,0.0114943]
[1764063382762,0.49976,87043.0,87024.0,0.03295]
[1764063383267,0.0229209,87042.0,87024.0,0.14355]
[1764063383563,0.1033809,87041.0,87040.0,0.1106]
[1764063383865,0.4833809,87041.0,87040.0,0.1106]
[1764063384867,0.4833809,87041.0,87040.0,0.1156]
[1764063385258,0.4833809,87041.0,87040.0,0.005]
[1764063385769,0.59826994,87041.0,87040.0,0.005]
[1764063386159,0.59826994,87041.0,87040.0,0.01]
[1764063390070,0.59826994,87041.0,87040.0,0.06608]
[1764063390266,0.59826994,87041.0,87040.0,0.01]
[1764063391062,0.59826994,87041.0,87040.0,0.06608]
[1764063391265,0.48324266,87041.0,87040.0,0.15355]
[1764063394262,0.46046,87041.0,87040.0,0.1650418]
[1764063395072,0.46046,87041.0,87040.0,0.15355]
[1764063395272,0.66534904,87041.0,87040.0,0.01]
[1764063395481,0.66534904,87041.0,87008.0,0.03295]
[1764063395482,0.06046,87024.0,87008.0,0.03295]
[1764063395775,0.06046,87009.0,87008.0,0.14355]
[1764063395958,0.06046,87001.0,87000.0,0.14355]
[1764063396163,0.46046,87001.0,87000.0,0.14355]
[1764063396763,0.46046,87001.0,87000.0,0.08903]
[1764063397169,0.06046,86993.0,86992.0,0.0892024]
[1764063397469,0.46046,86993.0,86992.0,0.0892024]
[1764063397662,0.46046,86993.0,86992.0,0.1437224]
[1764063400281,0.46046,86993.0,86992.0,0.1417224]
[1764063401765,0.20448,87008.0,87007.0,0.1086]
[1764063401967,0.5213777,87008.0,87007.0,0.1086]
[1764063402575,0.63633013,87008.0,87007.0,0.1086]
[1764063402766,0.0484,87001.0,87000.0,0.13802]
[1764063402969,0.4184,87001.0,87000.0,0.13802]
[1764063404075,0.3952,87001.0,87000.0,0.13802]
[1764063404372,0.0252,87001.0,87000.0,0.13802]
[1764063404574,0.0494,87001.0,87000.0,0.13802]
[1764063406374,0.07245711,87001.0,87000.0,0.13802]
[1764063407366,0.0484,86993.0,86992.0,0.1397224]
[1764063407567,0.4884,86993.0,86992.0,0.1397224]
[1764063407770,0.51147488,86993.0,86992.0,0.1397224]
[1764063408169,0.67641674,86993.0,86992.0,0.0001724]
[1764063408969,0.0484,86977.0,86976.0,0.14155]
[1764063409179,0.48147488,86977.0,86976.0,0.14155]
[1764063410371,0.48247488,86977.0,86976.0,0.14155]
[1764063411686,0.43407488,86977.0,86976.0,0.14155]
[1764063411877,0.281,86977.0,86976.0,0.14155]
[1764063412075,0.3294,86977.0,86976.0,0.14155]
[1764063412277,0.37006906,86977.0,86976.0,0.14155]
[1764063413787,0.0484,86969.0,86968.0,0.1381924]
[1764063413982,0.4284,86969.0,86968.0,0.1381924]
[1764063414280,0.06699898,86977.0,86976.0,0.13802]
[1764063414586,0.52005744,86977.0,86976.0,0.13802]
[1764063414984,0.6350416,86977.0,86976.0,0.13802]
[1764063415191,0.6340416,86977.0,86976.0,0.08382]
[1764063415890,0.6350416,86977.0,86976.0,0.08382]
[1764063416186,0.6350416,86977.0,86976.0,0.13802]
[1764063416691,0.52005744,86977.0,86976.0,0.13802]
[1764063416879,0.49699898,86977.0,86976.0,0.13802]
[1764063417571,0.23699898,86977.0,86976.0,0.13802]
[1764063418180,0.50699898,86977.0,86976.0,0.08382]
[1764063418385,0.50699898,86977.0,86976.0,0.13025]
[1764063418585,0.53006113,86977.0,86976.0,0.13025]
[1764063418785,0.03266,86969.0,86968.0,0.1256124]
[1764063418985,0.43266,86969.0,86968.0,0.1256124]
[1764063420879,0.45571146,86969.0,86968.0,0.1256124]
[1764063421392,0.45571146,86969.0,86968.0,0.1266424]
[1764063421592,0.43938146,86969.0,86968.0,0.1266424]
[1764063421790,0.42305146,86969.0,86968.0,0.1266424]
[1764063422686,0.43938146,86969.0,86968.0,0.1266424]
[1764063422878,0.45571146,86969.0,86968.0,0.1266424]
[1764063423084,0.05305146,86969.0,86968.0,0.1266424]
[1764063423285,0.27305146,86969.0,86968.0,0.1266424]
[1764063423696,0.02305146,86969.0,86968.0,0.1266424]
[1764063423988,0.05025898,86977.0,86976.0,0.12647]
[1764063424183,0.16573393,86977.0,86976.0,0.12647]
[1764063424384,0.15573393,86977.0,86976.0,0.12647]
[1764063424692,0.08,86977.0,86976.0,0.12647]
[1764063424890,0.3181,86998.0,86976.0,0.12647]
[1764063424891,0.0187143,86978.0,86976.0,0.12647]
[1764063425088,0.37,86978.0,86977.0,0.09602]
[1764063426097,0.38871983,86978.0,86977.0,0.09602]
[1764063426684,0.01871983,86978.0,86977.0,0.09602]
[1764063426880,0.00017205,86986.0,86985.0,0.09602]
[1764063427084,0.04017205,86986.0,86985.0,0.09602]
[1764063427285,0.41848207,86986.0,86985.0,0.09602]
[1764063428192,0.41948207,86986.0,86985.0,0.09602]
[1764063428694,0.10017205,86986.0,86985.0,0.09602]
[1764063428895,0.11938437,86986.0,86985.0,0.09602]
[1764063430587,0.12038437,86986.0,86985.0,0.09602]
[1764063430791,0.32938437,86986.0,86985.0,0.09602]
[1764063430987,0.33038437,86986.0,86985.0,0.09602]
[1764063431187,0.32938437,86986.0,86985.0,0.09602]
[1764063431388,0.53534605,86986.0,86976.0,0.12827]
[1764063431692,0.62711506,86986.0,86968.0,0.1284424]
[1764063432088,0.62611506,86986.0,86968.0,0.1284424]
[1764063432486,0.62711506,86986.0,86968.0,0.1284424]
[1764063433093,0.62711506,86986.0,86968.0,0.0306224]
[1764063433094,0.09176901,86978.0,86968.0,0.0306224]
[1764063433291,0.56176901,86978.0,86968.0,0.0001724]
[1764063433691,0.11497821,86977.0,86968.0,0.0001724]
[1764063433898,0.64497821,86977.0,86968.0,0.0001724]
[1764063436601,0.02306957,86976.0,86968.0,0.0001724]
[1764063436900,0.02306957,86975.0,86968.0,0.0001724]
[1764063437100,0.02306957,86974.0,86968.0,0.0001724]
[1764063437300,0.02306957,86973.0,86968.0,0.0001724]
[1764063437601,0.51306957,86973.0,86968.0,0.0001724]
[1764063437799,0.13805042,86972.0,86968.0,0.0001724]
[1764063438000,0.02306957,86971.0,86968.0,0.0001724]
[1764063438206,0.45306957,86971.0,86968.0,0.0766724]
[1764063438390,0.02306957,86970.0,86968.0,0.0766724]
[1764063438594,0.02306957,86970.0,86968.0,0.0001724]
[1764063438595,0.5280524,86970.0,86968.0,0.0001724]
[1764063438796,0.02306957,86969.0,86968.0,0.0001724]
[1764063438990,0.49306957,86969.0,86954.0,0.02977]
[1764063439196,0.15378857,86964.0,86947.0,0.0765]
[1764063439391,0.02306957,86963.0,86947.0,0.0765]
[1764063439597,0.02306957,86962.0,86940.0,0.12759]
[1764063439904,0.15378857,86950.0,86942.0,0.0979925]
[1764063440100,0.02306957,86949.0,86942.0,0.0979925]
[1764063440296,0.42306957,86949.0,86942.0,0.0979925]
[1764063440496,0.13807092,86948.0,86942.0,0.0979925]
[1764063440699,0.02306957,86947.0,86946.0,0.09782]
[1764063440902,0.44306957,86947.0,86946.0,0.09782]
[1764063441406,0.55808414,86947.0,86946.0,0.09782]
[1764063441720,0.55808414,86947.0,86946.0,0.04673]
[1764063441901,0.55808414,86947.0,86942.0,0.0479025]
[1764063442102,0.02306957,86946.0,86942.0,0.0469025]
[1764063442405,0.02306957,86945.0,86942.0,0.0979925]
[1764063442605,0.02306957,86944.0,86942.0,0.0979925]
[1764063442806,0.02306957,86943.0,86942.0,0.0001725]
[1764063443006,0.41306957,86943.0,86942.0,0.0001725]
[1764063443404,0.41306957,86943.0,86942.0,0.0979925]
[1764063443606,0.41306957,86943.0,86942.0,0.0989925]
[1764063443807,0.41306957,86943.0,86942.0,0.0999925]
[1764063444010,0.41306957,86943.0,86942.0,0.0989925]
[1764063444211,0.41306957,86943.0,86942.0,0.0999925]
[1764063444507,0.41306957,86943.0,86942.0,0.0969925]
[1764063444706,0.41306957,86943.0,86942.0,0.002]
[1764063445004,0.52808811,86943.0,86942.0,0.002]
[1764063445207,0.57808811,86943.0,86942.0,0.002]
[1764063447310,0.57808811,86943.0,86942.0,0.04873]
[1764063447510,0.57808811,86943.0,86942.0,0.002]
[1764063450608,0.52808811,86943.0,86942.0,0.002]
[1764063451010,0.52808811,86943.0,86942.0,0.04873]
[1764063451206,0.52808811,86943.0,86942.0,0.09982]
[1764063454207,0.56808811,86943.0,86942.0,0.09982]
[1764063454409,0.41306957,86943.0,86942.0,0.09982]
[1764063455002,0.39,86943.0,86942.0,0.09982]
[1764063456115,0.0001725,86960.0,86959.0,0.09782]
[1764063456419,0.47315273,86960.0,86959.0,0.09782]
[1764063459119,0.09315273,86960.0,86959.0,0.09782]
[1764063459514,0.09319636,86960.0,86959.0,0.09782]
[1764063459713,0.0701725,86960.0,86959.0,0.09782]
[1764063459913,0.4001725,86960.0,86959.0,0.09782]
[1764063460117,0.4231967,86960.0,86959.0,0.09782]
[1764063461015,0.23124533,86960.0,86959.0,0.09782]
[1764063461223,0.25775246,86960.0,86959.0,0.09782]
[1764063462607,0.25775246,86960.0,86959.0,0.1093225]
[1764063463214,0.25775246,86960.0,86959.0,0.09782]
[1764063470726,0.25775246,86960.0,86959.0,0.04673]
[1764063471334,0.25775246,86960.0,86959.0,0.09999]
[1764063472226,0.46274852,86960.0,86954.0,0.02977]
[1764063472422,0.46274852,86960.0,86947.0,0.13236]
[1764063472628,0.15378857,86957.0,86947.0,0.13236]
[1764063472828,0.63378857,86957.0,86947.0,0.13236]
[1764063473235,0.13794605,86956.0,86954.0,0.001]
[1764063473430,0.02294669,86955.0,86954.0,0.002]
[1764063473631,0.46294669,86955.0,86954.0,0.002]
[1764063473831,0.46294669,86955.0,86954.0,0.001]
[1764063474131,0.5779487,86955.0,86954.0,0.001]
[1764063474529,0.5779487,86955.0,86954.0,0.002]
[1764063475934,0.5779487,86955.0,86954.0,0.05133]
[1764063476139,0.5779487,86955.0,86954.0,0.05033]
[1764063476642,0.5954087,86955.0,86954.0,0.05033]
[1764063476938,0.5954087,86955.0,86954.0,0.05133]
[1764063477333,0.5954087,86955.0,86954.0,0.10909]
[1764063477730,0.5954087,86955.0,86954.0,0.002]
[1764063477931,0.6854087,86955.0,86954.0,0.002]
[1764063481143,0.01746,86941.0,86940.0,0.14196]
[1764063481342,0.38746,86941.0,86940.0,0.14196]
[1764063481543,0.41040669,86941.0,86940.0,0.14196]
[1764063482437,0.41040669,86941.0,86940.0,0.14296]
[1764063483438,0.41040669,86941.0,86940.0,0.14396]
[1764063484149,0.39294669,86941.0,86940.0,0.14396]
[1764063484550,0.07294669,86941.0,86940.0,0.14396]
[1764063485544,0.13294669,86941.0,86940.0,0.14396]
[1764063486942,0.0001725,86949.0,86948.0,0.1236939]
[1764063488653,0.0001725,86949.0,86948.0,0.1246939]
[1764063488948,0.0001725,86949.0,86948.0,0.1256939]
[1764063492052,0.0001725,86949.0,86948.0,0.11419]
[1764063494051,0.05814,86959.0,86958.0,0.1565226]
[1764063494355,0.14,86959.0,86958.0,0.1565226]
[1764063494658,0.41,86959.0,86958.0,0.14502]
[1764063494859,0.41,86959.0,86958.0,0.14302]
[1764063495948,0.00017229,86967.0,86959.0,0.0115025]
[1764063496157,0.59266229,86967.0,86966.0,0.11414]
[1764063500858,0.55266229,86967.0,86966.0,0.11414]
[1764063502359,0.64266229,86967.0,86966.0,0.11414]
[1764063503364,0.11249,86959.0,86958.0,0.14818]
[1764063503555,0.53249,86959.0,86958.0,0.14818]
[1764063505161,0.53249,86959.0,86958.0,0.05759]
[1764063505475,0.11249,86951.0,86950.0,0.0577625]
[1764063505760,0.47249,86951.0,86950.0,0.1143125]
[1764063505952,0.47249,86951.0,86950.0,0.1483525]
[1764063506754,0.47249,86951.0,86950.0,0.1493525]
[1764063507258,0.47249,86951.0,86950.0,0.1503525]
[1764063507456,0.47249,86951.0,86950.0,0.1163125]
[1764063508062,0.58749796,86951.0,86950.0,0.0021725]
[1764063511469,0.53401796,86951.0,86940.0,0.03404]
[1764063511667,0.11249,86941.0,86940.0,0.14818]
[1764063511971,0.33249,86941.0,86940.0,0.14818]
[1764063512173,0.21035884,86960.0,86959.0,0.11414]
[1764063512374,0.11249,86951.0,86950.0,0.14818]
[1764063512669,0.49249,86951.0,86950.0,0.14818]
[1764063513772,0.49249,86951.0,86950.0,0.09818]
[1764063514074,0.49249,86951.0,86950.0,0.10827]
[1764063514268,0.49249,86951.0,86950.0,0.11532]
[1764063514576,0.49249,86951.0,86950.0,0.06572]
[1764063514871,0.49249,86951.0,86950.0,0.01622]
[1764063515174,0.11249,86941.0,86940.0,0.07626534]
[1764063515376,0.14766,86940.0,86934.0,0.0115058]
[1764063515868,0.14766,86940.0,86939.0,0.0115051]
[1764063516982,0.14766,86940.0,86931.0,0.07305224]
[1764063517274,0.14766,86940.0,86939.0,0.0135051]
[1764063518375,0.17042898,86940.0,86939.0,0.0135051]
[1764063519076,0.17042898,86940.0,86939.0,0.0125051]
[1764063519579,0.17042898,86940.0,86932.0,0.0115061]
[1764063519877,0.13525898,86939.0,86938.0,0.0115053]
[1764063520671,0.07624898,86939.0,86938.0,0.0115053]
[1764063521179,0.13525898,86939.0,86938.0,0.0115053]
[1764063522479,0.13525898,86939.0,86938.0,0.0125053]
[1764063523280,0.13525898,86939.0,86930.0,0.04623684]
[1764063523481,0.13479898,86938.0,86931.0,0.0115062]
[1764063523780,0.13479898,86937.0,86936.0,0.0115055]
[1764063523976,0.13479898,86937.0,86930.0,0.03473054]
[1764063523977,0.11203,86931.0,86930.0,0.03473054]
[1764063524174,0.13479564,86931.0,86930.0,0.0001725]
[1764063524474,0.13479564,86931.0,86930.0,0.0116788]
[1764063525481,0.13479564,86931.0,86930.0,0.0125063]
[1764063525680,0.07699564,86931.0,86922.0,0.1327073]
[1764063525880,0.02276564,86930.0,86927.0,0.0115067]
[1764063526076,0.11203,86934.0,86933.0,0.0115059]
[1764063526280,0.13479668,86934.0,86933.0,0.0115059]
[1764063526483,0.13479668,86934.0,86927.0,0.0115067]
[1764063526683,0.13479668,86933.0,86927.0,0.0115067]
[1764063526983,0.13479668,86932.0,86927.0,0.0115067]
[1764063527180,0.13479668,86931.0,86928.0,0.0115066]
[1764063527383,0.07699668,86930.0,86928.0,0.0115066]
[1764063527579,0.02276668,86929.0,86928.0,0.0115066]
[1764063527885,0.13479972,86934.0,86932.0,0.0115059]
[1764063528076,0.13479971,86933.0,86932.0,0.0115059]
[1764063528277,0.13479971,86933.0,86923.0,0.09650945]
[1764063529086,0.11211313,86932.0,86931.0,0.0115062]
[1764063529383,0.11211313,86932.0,86927.0,0.002]
[1764063529586,0.1348054,86931.0,86928.0,0.0115066]
[1764063529883,8.313e-05,86932.0,86928.0,0.0115066]
[1764063529884,0.1735454,86930.0,86928.0,0.0115066]
[1764063530182,0.0770054,86929.0,86928.0,0.0115066]
[1764063530381,0.1348054,86929.0,86928.0,0.0115066]
[1764063530783,0.1348054,86929.0,86923.0,0.07052305]
[1764063530973,0.1348054,86928.0,86925.0,0.011507]
[1764063531170,0.1348054,86927.0,86925.0,0.011507]
[1764063531376,0.0770054,86926.0,86925.0,0.011507]
[1764063531774,0.0227754,86926.0,86925.0,0.011507]
[1764063532078,0.13481926,86929.0,86928.0,0.0115066]
[1764063532384,0.13481926,86929.0,86928.0,0.0125066]
[1764063532885,0.02278926,86929.0,86923.0,0.04453665]
[1764063533182,0.13481926,86928.0,86925.0,0.012507]
[1764063533373,0.13481926,86927.0,86925.0,0.012507]
[1764063533578,0.03874,86930.0,86925.0,0.012507]
[1764063533579,0.07701926,86926.0,86925.0,0.012507]
[1764063533783,0.07701926,86926.0,86925.0,0.011507]
[1764063534288,0.05423,86926.0,86925.0,0.011507]
[1764063534873,0.05423,86926.0,86923.0,0.00624365]
[1764063535082,0.15077,86925.0,86924.0,0.0115071]
[1764063536378,0.15077,86925.0,86924.0,0.0125071]
[1764063536886,0.15077,86925.0,86924.0,0.0547871]
[1764063537474,0.15077,86925.0,86924.0,0.0052871]
[1764063538486,0.15077,86925.0,86924.0,0.0167942]
[1764063539888,0.15195,86921.0,86920.0,0.11775285]
[1764063540183,0.15195,86921.0,86920.0,0.0115077]
[1764063541690,0.19069,86925.0,86924.0,0.0115071]
[1764063542281,0.03874,86930.0,86929.0,0.0115065]
[1764063542282,0.19069,86930.0,86929.0,0.0115065]
[1764063542483,0.19069,86930.0,86929.0,0.07366421]
[1764063542683,0.19069,86930.0,86929.0,0.0115065]
[1764063542887,0.1634566,86928.0,86927.0,0.06215771]
[1764063543083,0.15195,86928.0,86927.0,0.06215771]
[1764063543288,0.15195,86928.0,86927.0,0.01215771]
[1764063544785,0.04486,86920.0,86919.0,0.00011523]
[1764063544989,0.19681,86920.0,86919.0,0.01162303]
[1764063546691,0.19069,86930.0,86929.0,0.0115065]
[1764063546882,8.313e-05,86932.0,86929.0,0.0115065]
[1764063547184,0.15203313,86932.0,86929.0,0.0115065]
[1764063547382,0.19681,86930.0,86929.0,0.0115065]
[1764063547784,0.19681,86930.0,86921.0,0.05367046]
[1764063548181,8.313e-05,86932.0,86922.0,0.10624515]
[1764063548387,8.313e-05,86932.0,86929.0,0.0115065]
[1764063548781,0.15203313,86932.0,86929.0,0.0115065]
[1764063548983,0.19681,86930.0,86929.0,0.0115065]
[1764063550084,0.12188,86930.0,86929.0,0.0115065]
[1764063551189,8.313e-05,86932.0,86929.0,0.0115065]
[1764063551395,0.04486,86945.0,86938.0,0.0115053]
[1764063551894,0.04805,86950.0,86944.0,0.0115045]
[1764063551895,0.18969,86950.0,86944.0,0.0115045]